[Event "1st Turkish League 2017"]
[Site "Konya"]
[Date "2017.07.23"]
[Round "9"]
[White "Baylav, Can"]
[Black "Yelligedik, Murat"]
[Result "0-1"]
[ECO "B34"]
[WhiteElo "2001"]
[BlackElo "2014"]
[Annotator "NA"]
[PlyCount "104"]
[EventType "team-tourn"]
[EventCountry "TUR"]
[SourceTitle "playchess.com"]
[Source "ChessBase"]
[SourceQuality "1"]
[TimeControl "5400+30"]

1. e4 {[%emt 0:00:30]} c5 {[%emt 0:01:00]} 2. Nf3 {[%emt 0:00:30]} Nc6 {[%emt 0:00:00]} 3. d4 {[%emt 0:01:30]} cxd4 {[%emt 0:00:00]} 4. Nxd4 {[%emt 0:00:30]} g6 {[%emt 0:00:00]} 5. Nc3 {[%emt 0:00:30]} Bg7 {[%emt 0:00:00]} 6. Be3 {[%emt 0:00:30]} Nf6 {[%emt 0:00:30]} 7. Be2 {[%emt 0:00:30]} O-O {[%emt 0:00:00]} 8. O-O {[%emt 0:00:30]} d5 {[%emt 0:00:00]} 9. exd5 {[%emt 0:07:30]} Nb4 {[%emt 0:02:30]} 10. d6 {[%emt 0:23:30]} Qxd6 {[%emt 0:28:30]} 11. Ndb5 {[%emt 0:05:30] B34: Sicilian: Accelerated Dragon with 5 Nc3: sidelines} (11. Ncb5 Qb8 12. c4 a6 13. Nc3 e5 14. Nf3 Bf5 15. Bb6 Nd7 16. Nh4 Be6 17. Be3 Rd8 18. Qc1 Qd6 19. Bh6 Nc5 20. Bxg7 Kxg7 {½-½ (86) Inkiov,V (2485)-Tregubov,P (2598) Cap d'Agde 2010}) 11... Qb8 {[%emt 0:05:30]} 12. Bc5 {[%emt 0:03:30]} Nc6 {[%emt 0:00:30]} 13. Bf3 {[%emt 0:03:30]} Nd7 {[%emt 0:02:30]} 14. Be3 {[%emt 0:04:30]} Rd8 $146 {[%emt 0:12:30]} ({Predecessor:} 14... Nde5 15. Be2 Be6 16. Qc1 Rd8 17. Rd1 a6 18. Na3 b5 {½-½ (65) Rong,M-Wu,X Beijing 1979}) 15. Qe2 {[%emt 0:04:30]} a6 {[%emt 0:01:30]} 16. Na3 {[%emt 0:00:30]} Nce5 {[%emt 0:01:30]} 17. Rad1 {[%emt 0:00:30]} Nxf3+ {[%emt 0:03:30]} 18. Qxf3 {[%emt 0:00:30]} b5 {[%emt 0:04:30]} 19. Nd5 {[%emt 0:03:30]} Re8 {[%emt 0:03:30]} 20. Bg5 {[%emt 0:11:30]} Bb7 {[%emt 0:01:30]} 21. Qb3 $17 {[%emt 0:04:30]} Bxd5 {[%emt 0:15:19]} 22. Rxd5 {[%emt 0:00:30]} Nb6 {[%emt 0:00:09]} 23. Rd3 {[%emt 0:00:30]} Na4 {[%emt 0:01:55]} 24. Rf3 {[%emt 0:01:30]} e6 {[%emt 0:00:37]} 25. c3 {[%emt 0:01:51]} Qe5 {[%emt 0:01:56]} 26. Bf4 {[%emt 0:01:20]} Qe2 {[%emt 0:01:35]} 27. Bc1 {[%emt 0:05:05]} Red8 {[%emt 0:05:25]} 28. Re3 {[%emt 0:02:07]} Qh5 {[%emt 0:00:22]} 29. Rh3 {[%emt 0:02:29]} Qf5 {[%emt 0:03:00]} 30. Rf3 {[%emt 0:03:47]} Qe5 {[%emt 0:00:03]} 31. Be3 {[%emt 0:00:46]} Rac8 {[%emt 0:02:58]} 32. Nc2 {[%emt 0:03:05]} Qd5 {[%emt 0:02:18]} 33. Qxd5 {[%emt 0:02:10]} Rxd5 {[%emt 0:00:30]} 34. Nb4 {[%emt 0:00:30]} Rd6 {[%emt 0:00:30]} 35. Bc1 {[%emt 0:00:30]} a5 {[%emt 0:00:08]} 36. Nd3 {[%emt 0:00:59]} Rcd8 {[%emt 0:00:41]} 37. Nf4 {[%emt 0:00:01]} Bh6 {[%emt 0:01:31]} 38. Nxe6 {[%emt 0:00:48]} Rxe6 {[%emt 0:00:29]} 39. Bxh6 {[%emt 0:00:34]} Nxb2 {[%emt 0:00:00]} 40. g3 {[%emt 0:00:18]} Nc4 {[%emt 0:00:55]} 41. Rb1 {[%emt 0:00:30]} Rd5 {[%emt 0:00:39]} 42. a4 {[%emt 0:00:12]} g5 {[%emt 0:00:00]} 43. h4 {[%emt 0:01:23]} Nd2 {[%emt 0:00:32]} 44. hxg5 {[%emt 0:00:39]} Nxf3+ {[%emt 0:00:39]} 45. Kg2 {[%emt 0:00:01]} Nxg5 {[%emt 0:00:32]} 46. Bxg5 {[%emt 0:00:30]} Rxg5 {[%emt 0:00:30]} 47. axb5 {[%emt 0:00:30]} Rb6 {[%emt 0:00:30]} 48. c4 {[%emt 0:00:30]} Rc5 {[%emt 0:00:00]} 49. Ra1 {[%emt 0:00:00]} Rxc4 {[%emt 0:00:00]} 50. Rxa5 {[%emt 0:00:28]} Rc5 {[%emt 0:00:00]} 51. Ra8+ {[%emt 0:00:00]} Kg7 {[%emt 0:00:00]} 52. Kh2 {[%emt 0:00:21]} Rbxb5 {[%emt 0:00:00]} 0-1

[Event "1st Turkish League 2017"]
[Site "Konya"]
[Date "2017.07.23"]
[Round "9"]
[White "Cakiroglu, Metin"]
[Black "Sari, Yasin"]
[Result "0-1"]
[ECO "A06"]
[WhiteElo "1993"]
[BlackElo "2195"]
[Annotator "NA"]
[PlyCount "86"]
[EventType "team-tourn"]
[EventCountry "TUR"]
[SourceTitle "playchess.com"]
[Source "ChessBase"]
[SourceQuality "1"]
[TimeControl "5400+30"]

1. Nf3 {[%emt 0:00:30]} c5 {[%emt 0:02:00]} 2. b3 {[%emt 0:00:00]} d5 {[%emt 0:00:30]} 3. Bb2 {[%emt 0:00:00]} f6 {[%emt 0:00:00]} 4. e4 {[%emt 0:12:30]} d4 {[%emt 0:22:00]} 5. e5 {[%emt 0:03:30]} Nc6 {[%emt 0:03:30]} 6. Bb5 {[%emt 0:03:30]} Bg4 {[%emt 0:04:30]} 7. h3 {[%emt 0:01:30]} Bh5 {[%emt 0:02:30]} 8. Qe2 {[%emt 0:00:30]} Qc7 {[%emt 0:01:30]} 9. g4 {[%emt 0:03:30]} Bg6 {[%emt 0:00:30]} 10. c3 {[%emt 0:06:30]} a6 {[%emt 0:04:30]} 11. Bc4 {[%emt 0:03:30]} fxe5 {[%emt 0:10:30]} 12. Ng5 {[%emt 0:03:30]} b5 {[%emt 0:04:30]} 13. Bd5 {[%emt 0:27:30]} Nf6 {[%emt 0:01:30]} 14. Bg2 {[%emt 0:02:30]} h6 {[%emt 0:11:30]} 15. Ne6 {[%emt 0:04:30]} Qd6 {[%emt 0:00:30]} 16. f4 {[%emt 0:00:30]} d3 {[%emt 0:08:30]} 17. Qe3 {[%emt 0:02:30]} Qxe6 {[%emt 0:02:37]} 18. f5 {[%emt 0:00:30]} Qd6 {[%emt 0:00:58]} 19. fxg6 {[%emt 0:00:00]} Rc8 {[%emt 0:01:08]} 20. O-O {[%emt 0:03:00]} e6 $11 {[%emt 0:01:26]} 21. Bxc6+ {[%emt 0:00:40]} Rxc6 {[%emt 0:01:29]} 22. c4 {[%emt 0:03:08]} b4 {[%emt 0:02:37]} 23. Bxe5 {[%emt 0:00:09]} Qd7 {[%emt 0:00:49]} 24. Rf3 {[%emt 0:00:29]} Bd6 {[%emt 0:01:49]} 25. Bb2 {[%emt 0:00:20]} O-O {[%emt 0:01:02]} 26. Qxd3 {[%emt 0:00:24]} e5 {[%emt 0:03:45]} 27. Qf5 {[%emt 0:05:45]} e4 {[%emt 0:02:24]} 28. Rf1 {[%emt 0:02:45]} Qc7 {[%emt 0:00:57]} 29. d4 {[%emt 0:02:13]} Bh2+ {[%emt 0:01:30]} 30. Kh1 {[%emt 0:00:09]} Qg3 {[%emt 0:00:23]} 31. Qf2 {[%emt 0:00:38]} Qxh3 {[%emt 0:00:32]} 32. Qg2 {[%emt 0:00:25]} Qxg2+ {[%emt 0:00:46]} 33. Kxg2 {[%emt 0:00:30]} Nxg4 {[%emt 0:00:30]} 34. Rxf8+ {[%emt 0:00:30]} Kxf8 {[%emt 0:00:00]} 35. Nd2 {[%emt 0:00:33]} e3 {[%emt 0:00:56]} 36. Rf1+ {[%emt 0:01:31]} Kg8 {[%emt 0:00:51]} 37. Nf3 {[%emt 0:02:11]} Bc7 {[%emt 0:00:19]} 38. Nh4 {[%emt 0:01:12]} Bd8 {[%emt 0:01:30]} 39. d5 {[%emt 0:00:29]} Rd6 {[%emt 0:00:50]} 40. Nf5 {[%emt 0:05:14]} Rxg6 {[%emt 0:00:55]} 41. d6 {[%emt 0:00:06]} e2 {[%emt 0:00:06]} 42. Re1 {[%emt 0:01:28]} Ne3+ {[%emt 0:00:30]} 43. Kf3 {[%emt 0:00:00]} Nxf5 {[%emt 0:00:00]} 0-1

[Event "1st Turkish League 2017"]
[Site "Konya"]
[Date "2017.07.23"]
[Round "9"]
[White "Soyek, Ramazan"]
[Black "Ozkan, Ervin"]
[Result "0-1"]
[ECO "C02"]
[WhiteElo "1986"]
[BlackElo "2206"]
[Annotator "NA"]
[PlyCount "102"]
[EventType "team-tourn"]
[EventCountry "TUR"]
[SourceTitle "playchess.com"]
[Source "ChessBase"]
[SourceQuality "1"]
[TimeControl "5400+30"]

1. e4 {[%emt 0:00:30]} e6 {[%emt 0:01:00]} 2. d4 {[%emt 0:00:00]} d5 {[%emt 0:00:30]} 3. e5 {[%emt 0:00:00]} c5 {[%emt 0:00:00]} 4. c3 {[%emt 0:00:00]} Qb6 {[%emt 0:00:00]} 5. Nf3 {[%emt 0:00:00] LiveBook: 1969 Games} Bd7 {[%emt 0:00:30]} 6. a3 {[%emt 0:17:30]} Bb5 {[%emt 0:03:30]} 7. Bxb5+ {[%emt 0:10:30]} Qxb5 {[%emt 0:00:30]} 8. b4 {[%emt 0:00:00] C02: French: Advance Variation} (8. a4 Qd7 9. dxc5 Bxc5 10. b4 Bb6 11. a5 Bc7 12. O-O Ne7 13. Bf4 Nbc6 14. Qe2 a6 15. Rd1 O-O {1-0 (41) Haba,P (2526)-Degraeve,J (2520) Germany 2007}) 8... b6 {[%emt 0:15:30]} 9. a4 {[%emt 0:12:00]} Qd7 {[%emt 0:00:30]} 10. bxc5 {[%emt 0:05:30]} bxc5 {[%emt 0:00:30]} 11. Ba3 {[%emt 0:00:30]} Nc6 $146 {[%emt 0:03:30]} ({Predecessor:} 11... Nh6 12. Nbd2 Be7 13. O-O O-O 14. Rb1 Rc8 15. Qb3 Nc6 {1-0 (32) Mazurkiewicz,M (2073)-Kozak,M Laczna 2002}) 12. O-O {[%emt 0:02:30]} cxd4 {[%emt 0:19:30]} 13. cxd4 {[%emt 0:12:30]} Bxa3 {[%emt 0:00:30]} 14. Rxa3 {[%emt 0:03:30]} Nge7 {[%emt 0:00:30]} 15. Nbd2 {[%emt 0:07:30]} Nf5 {[%emt 0:03:30]} 16. Nb3 {[%emt 0:04:30]} Qe7 {[%emt 0:02:30]} 17. Qa1 {[%emt 0:05:47]} O-O {[%emt 0:01:30]} 18. Rc1 {[%emt 0:00:19]} Rac8 {[%emt 0:05:30]} 19. Ra2 $15 {[%emt 0:14:02]} Nb4 {[%emt 0:10:30]} 20. Rd2 {[%emt 0:00:09]} Rc4 {[%emt 0:03:30]} 21. Na5 {[%emt 0:01:51]} Rc7 {[%emt 0:00:30]} 22. Rxc7 {[%emt 0:01:41]} Qxc7 {[%emt 0:00:30]} 23. Nb3 {[%emt 0:00:00]} Qc4 {[%emt 0:01:30]} 24. Qd1 {[%emt 0:00:34]} Nc6 {[%emt 0:02:30]} 25. Nc1 {[%emt 0:00:32]} Nb4 {[%emt 0:06:34]} 26. g4 {[%emt 0:00:25]} Rc8 {[%emt 0:00:49]} 27. Ne2 {[%emt 0:00:11]} Ne7 {[%emt 0:00:22]} 28. h4 {[%emt 0:00:11]} Na2 {[%emt 0:01:29]} 29. Kg2 {[%emt 0:00:34]} Nc3 {[%emt 0:01:42]} 30. Nxc3 {[%emt 0:00:30]} Qxc3 {[%emt 0:00:00]} 31. h5 {[%emt 0:00:00]} h6 {[%emt 0:00:11]} 32. Qb1 {[%emt 0:00:27]} g6 {[%emt 0:00:43]} 33. hxg6 {[%emt 0:01:46]} Nxg6 {[%emt 0:00:29]} 34. Kg3 {[%emt 0:00:03]} Kg7 {[%emt 0:01:30]} 35. Rd3 {[%emt 0:00:10]} Qc1 {[%emt 0:02:10]} 36. Qxc1 {[%emt 0:00:30]} Rxc1 {[%emt 0:00:00]} 37. Rb3 {[%emt 0:00:03]} Rc4 {[%emt 0:00:00]} 38. a5 {[%emt 0:00:33]} Ra4 {[%emt 0:00:29]} 39. Rb5 {[%emt 0:00:00]} Ra3 {[%emt 0:00:27]} 40. Rc5 {[%emt 0:00:22]} a6 {[%emt 0:00:26]} 41. Kg2 {[%emt 0:01:06]} Nf4+ {[%emt 0:02:14]} 42. Kg3 {[%emt 0:00:05]} Nd3 {[%emt 0:00:28]} 43. Rc6 {[%emt 0:01:41]} Ne1 {[%emt 0:00:30]} 44. Rxa6 {[%emt 0:00:00]} Rxf3+ {[%emt 0:00:20]} 45. Kh2 {[%emt 0:00:16]} Rxf2+ {[%emt 0:00:30]} 46. Kg1 {[%emt 0:00:00]} Rf4 {[%emt 0:00:00]} 47. Rb6 {[%emt 0:00:05]} Rxd4 {[%emt 0:00:01]} 48. a6 {[%emt 0:00:09]} Nf3+ {[%emt 0:00:24]} 49. Kf2 {[%emt 0:00:30]} Nxe5 {[%emt 0:00:00]} 50. Ke3 {[%emt 0:00:38]} Ra4 {[%emt 0:00:03]} 51. Ke2 {[%emt 0:00:28]} Rxg4 0-1

[Event "1st Turkish League 2017"]
[Site "Konya"]
[Date "2017.07.23"]
[Round "9"]
[White "Bayik, Hasan"]
[Black "Rzayev, Askar Aliakbar"]
[Result "0-1"]
[ECO "E32"]
[WhiteElo "1879"]
[BlackElo "2080"]
[Annotator "NA"]
[PlyCount "126"]
[EventType "team-tourn"]
[EventCountry "TUR"]
[SourceTitle "playchess.com"]
[Source "ChessBase"]
[SourceQuality "1"]
[TimeControl "5400+30"]

1. d4 {[%emt 0:00:30]} Nf6 {[%emt 0:01:00]} 2. c4 {[%emt 0:00:30]} e6 {[%emt 0:00:00]} 3. Nc3 {[%emt 0:00:30]} Bb4 {[%emt 0:00:00]} 4. Qc2 {[%emt 0:00:00]} O-O {[%emt 0:00:00]} 5. Bg5 {[%emt 0:01:00]} d5 {[%emt 0:00:00]} 6. e3 {[%emt 0:00:30] LiveBook: 9 Games} c5 {[%emt 0:00:30] E32: Nimzo-Indian: Classical (4 Qc2): 4...0-0} 7. Nf3 {[%emt 0:05:30]} h6 {[%emt 0:01:30]} 8. Bxf6 {[%emt 0:00:30]} (8. Bh4 cxd4 9. exd4 Nbd7 10. cxd5 Nb6 11. dxe6 Bxe6 12. Be2 Rc8 13. a3 Bxc3+ 14. bxc3 Nbd5 15. O-O Rxc3 16. Qb2 Qc7 17. Rac1 {0-1 (33) Mamedyarov,S (2757)-Leko,P (2730) Beijing 2013}) 8... Qxf6 {[%emt 0:00:00]} 9. cxd5 {[%emt 0:03:30]} cxd4 {[%emt 0:01:00]} 10. Nxd4 {[%emt 0:00:30]} exd5 {[%emt 0:00:30]} 11. a3 {[%emt 0:01:30]} Bxc3+ {[%emt 0:00:30]} 12. Qxc3 {[%emt 0:00:00]} Nc6 {[%emt 0:00:30]} 13. Rc1 $146 {[%emt 0:05:00]} ({Predecessor:} 13. Rd1 Be6 14. Bb5 Ne5 15. O-O Rac8 16. Qb3 {1-0 (38) Miljkovic,M (2477)-Djordjevic,D (2014) Belgrade 2014}) 13... Ne5 {[%emt 0:02:30]} 14. f4 {[%emt 0:11:30]} Ng4 {[%emt 0:02:30]} 15. Be2 {[%emt 0:02:30]} Qh4+ {[%emt 0:01:30]} 16. g3 {[%emt 0:03:30]} Qe7 {[%emt 0:00:30]} 17. Bxg4 {[%emt 0:03:30]} Bxg4 {[%emt 0:00:30]} 18. Qd3 {[%emt 0:00:30]} Rfe8 {[%emt 0:01:30]} 19. Kf2 {[%emt 0:00:30]} Rac8 {[%emt 0:02:30]} 20. Rhe1 {[%emt 0:01:30]} a6 {[%emt 0:03:30]} 21. Nc2 {[%emt 0:16:30]} Rc4 {[%emt 0:08:30]} 22. Nb4 {[%emt 0:01:30]} Bf5 {[%emt 0:03:30]} 23. Qd2 {[%emt 0:04:30]} Be4 {[%emt 0:00:30]} 24. b3 {[%emt 0:05:30]} Rxc1 {[%emt 0:01:30]} 25. Rxc1 {[%emt 0:07:30]} a5 {[%emt 0:01:30]} 26. Nc2 {[%emt 0:00:30]} Rc8 {[%emt 0:04:30]} 27. Nd4 {[%emt 0:00:30]} Rc5 {[%emt 0:05:30]} 28. Rxc5 {[%emt 0:01:30]} Qxc5 {[%emt 0:02:30]} 29. b4 {[%emt 0:00:00]} axb4 {[%emt 0:00:30]} 30. axb4 {[%emt 0:00:00]} Qa7 {[%emt 0:00:30]} 31. Nb3 {[%emt 0:02:30]} b6 {[%emt 0:01:30]} 32. Qd4 {[%emt 0:07:20]} Qd7 {[%emt 0:04:30]} 33. Nd2 {[%emt 0:03:20]} Qh3 {[%emt 0:02:30]} 34. Nxe4 {[%emt 0:00:02]} Qxh2+ {[%emt 0:00:30]} 35. Kf1 {[%emt 0:01:25]} Qh1+ {[%emt 0:06:30]} 36. Kf2 $15 {[%emt 0:00:01]} dxe4 {[%emt 0:00:30]} 37. Ke2 {[%emt 0:02:55]} Qg2+ {[%emt 0:01:30]} 38. Kd1 {[%emt 0:00:00]} b5 {[%emt 0:01:30]} 39. Qd8+ {[%emt 0:03:31]} Kh7 {[%emt 0:00:30]} 40. Qd5 {[%emt 0:00:00]} Qxg3 {[%emt 0:06:30]} 41. Qxb5 {[%emt 0:02:31]} Qg4+ {[%emt 0:01:30]} 42. Ke1 {[%emt 0:00:39]} f5 {[%emt 0:07:30]} 43. Qe2 {[%emt 0:01:33]} Qg1+ {[%emt 0:00:30]} 44. Kd2 {[%emt 0:00:01]} Qa1 {[%emt 0:02:30]} 45. Qb5 {[%emt 0:00:57]} Qb2+ {[%emt 0:00:30]} 46. Kd1 {[%emt 0:00:01]} Qb3+ {[%emt 0:02:30]} 47. Kd2 {[%emt 0:00:05]} Kg6 {[%emt 0:03:30]} 48. Qe8+ {[%emt 0:00:49]} Kh7 {[%emt 0:01:15]} 49. Qb5 {[%emt 0:01:07]} Qe6 {[%emt 0:01:02]} 50. Kc3 {[%emt 0:00:42]} h5 {[%emt 0:00:39]} 51. Qe2 {[%emt 0:02:12]} Qc6+ {[%emt 0:01:12]} 52. Kb3 {[%emt 0:00:02]} Qg6 {[%emt 0:02:31]} 53. Qe1 {[%emt 0:01:07]} Qe6+ {[%emt 0:02:31]} 54. Ka4 {[%emt 0:00:21]} Qa6+ {[%emt 0:00:00]} 55. Kb3 {[%emt 0:00:03]} Qf6 {[%emt 0:01:53]} 56. b5 {[%emt 0:00:26]} h4 {[%emt 0:00:49]} 57. Ka4 {[%emt 0:00:12]} Qd8 {[%emt 0:00:47]} 58. Qe2 {[%emt 0:02:00]} Kh6 {[%emt 0:00:25]} 59. Qg2 {[%emt 0:00:00]} Qd1+ {[%emt 0:00:09]} 60. Ka5 {[%emt 0:00:20]} Qg4 {[%emt 0:06:24]} 61. Qf1 {[%emt 0:00:01]} h3 {[%emt 0:00:37]} 62. b6 {[%emt 0:00:30]} Qg2 {[%emt 0:00:08]} 63. Qe1 {[%emt 0:00:00]} h2 0-1

[Event "1st Turkish League 2017"]
[Site "Konya"]
[Date "2017.07.23"]
[Round "9"]
[White "Gulsoy, Mustafa Alpago"]
[Black "Keler, Faruk"]
[Result "1-0"]
[ECO "B22"]
[WhiteElo "1871"]
[BlackElo "2262"]
[Annotator "NA"]
[PlyCount "127"]
[EventType "team-tourn"]
[EventCountry "TUR"]
[SourceTitle "playchess.com"]
[Source "ChessBase"]
[SourceQuality "1"]
[TimeControl "5400+30"]

1. e4 {[%emt 0:00:30]} c5 {[%emt 0:01:00]} 2. c3 {[%emt 0:00:30]} d6 {[%emt 0:00:00]} 3. d4 {[%emt 0:01:30]} Nf6 {[%emt 0:00:00]} 4. dxc5 {[%emt 0:01:30]} Nc6 {[%emt 0:00:30] LiveBook: 358 Games} 5. Qc2 {[%emt 0:01:30]} dxc5 {[%emt 0:03:30]} 6. Be3 {[%emt 0:01:30] B22: Sicilian: 2 c3} (6. Bf4 Nh5 7. Be3 e5 8. Qd1 Qxd1+ 9. Kxd1 f5 10. f3 fxe4 11. fxe4 Nf6 12. Nd2 Ng4 13. Ke2 Nxe3 14. Kxe3 {½-½ (69) Stevic,H (2607)-Jones,G (2650) Dubai 2014}) 6... b6 {[%emt 0:07:30]} 7. f3 $146 {[%emt 0:07:30]} ({Predecessor:} 7. Bb5 Bb7 8. Qa4 Qc8 9. Nd2 a6 10. Be2 b5 11. Qc2 e5 12. Nb3 c4 13. Nc5 Bxc5 14. Bxc5 {0-1 (25) Rott,G (2178)-Unbehend,M Dortmund 2001}) 7... Qc7 {[%emt 0:03:30]} 8. Na3 {[%emt 0:05:30]} a6 {[%emt 0:01:30]} 9. g4 {[%emt 0:05:30]} e6 {[%emt 0:05:30]} 10. Qf2 {[%emt 0:02:30]} Bb7 {[%emt 0:11:30]} 11. O-O-O {[%emt 0:02:30]} Ne5 {[%emt 0:07:30]} 12. Nc4 {[%emt 0:09:30]} Nxc4 {[%emt 0:06:30]} 13. Bxc4 {[%emt 0:01:30]} Bd6 {[%emt 0:02:30]} 14. Ne2 {[%emt 0:03:30]} O-O-O {[%emt 0:00:30]} 15. Rhe1 {[%emt 0:16:30]} Rd7 {[%emt 0:01:30]} 16. Rxd6 {[%emt 0:05:30]} Qxd6 {[%emt 0:03:30]} 17. e5 {[%emt 0:00:30]} Qxe5 {[%emt 0:01:30]} 18. Bf4 {[%emt 0:00:00]} Nxg4 {[%emt 0:00:30]} 19. Qg3 {[%emt 0:01:00]} (19. fxg4 $18 Qe4 20. Nd4) 19... Qf6 {[%emt 0:01:30]} 20. fxg4 {[%emt 0:00:30]} Rhd8 {[%emt 0:00:30]} 21. Be5 {[%emt 0:03:30]} Qg5+ {[%emt 0:01:30]} 22. Qf4 {[%emt 0:08:30]} Qh4 {[%emt 0:06:30]} 23. Qg3 {[%emt 0:03:16]} Qxg3 {[%emt 0:01:30]} 24. Nxg3 {[%emt 0:00:09]} b5 {[%emt 0:00:30]} 25. Bf1 {[%emt 0:01:20]} Bf3 $11 {[%emt 0:05:30]} 26. a4 {[%emt 0:05:27]} Rd1+ {[%emt 0:00:30]} 27. Rxd1 {[%emt 0:00:30]} Rxd1+ {[%emt 0:00:30]} 28. Kc2 {[%emt 0:00:00]} Rd5 {[%emt 0:00:00]} 29. Bxg7 {[%emt 0:00:38]} Bxg4 {[%emt 0:08:00]} 30. c4 {[%emt 0:03:13]} Rg5 {[%emt 0:06:02]} 31. Bf6 {[%emt 0:00:57]} Rg6 {[%emt 0:00:35]} 32. Be7 {[%emt 0:00:30]} bxa4 {[%emt 0:00:00]} 33. Bxc5 {[%emt 0:00:13]} Rf6 {[%emt 0:02:57]} 34. Bd4 {[%emt 0:01:14]} Rf4 {[%emt 0:00:43]} 35. Be3 {[%emt 0:00:09]} Rf3 {[%emt 0:01:51]} 36. Kd2 {[%emt 0:00:50]} Rf6 {[%emt 0:00:17]} 37. Bd3 {[%emt 0:01:14]} h5 {[%emt 0:00:19]} 38. c5 {[%emt 0:01:18]} e5 {[%emt 0:02:54]} 39. Ne4 {[%emt 0:00:46]} Rf3 {[%emt 0:00:13]} 40. Bxa6+ {[%emt 0:01:30]} Kc7 {[%emt 0:00:30]} 41. Ng5 {[%emt 0:00:00]} Rf5 {[%emt 0:00:20]} 42. Bd3 {[%emt 0:00:06]} Rf6 {[%emt 0:00:19]} 43. Bc4 {[%emt 0:01:30]} Bd7 {[%emt 0:03:13]} 44. Nxf7 {[%emt 0:00:44]} Be6 {[%emt 0:01:10]} 45. Bxe6 {[%emt 0:00:52]} Rxe6 {[%emt 0:00:14]} 46. Nxe5 {[%emt 0:00:03]} Ra6 {[%emt 0:01:22]} 47. Nc4 {[%emt 0:00:31]} Kc6 {[%emt 0:00:53]} 48. Kc3 {[%emt 0:00:08]} Ra8 {[%emt 0:00:20]} 49. Kb4 {[%emt 0:00:41]} Ra7 {[%emt 0:02:55]} 50. Na5+ {[%emt 0:01:09]} Kd5 {[%emt 0:00:07]} 51. c6 {[%emt 0:00:58]} Re7 {[%emt 0:00:46]} 52. Bb6 {[%emt 0:00:13]} Re4+ {[%emt 0:00:55]} 53. Kb5 {[%emt 0:00:01]} Re2 {[%emt 0:00:32]} 54. c7 {[%emt 0:00:13]} Rc2 {[%emt 0:01:30]} 55. Kxa4 {[%emt 0:00:32]} Kd6 {[%emt 0:00:14]} 56. Kb3 {[%emt 0:00:55]} Rc1 {[%emt 0:00:30]} 57. Nc4+ {[%emt 0:00:30]} Kd7 {[%emt 0:00:00]} 58. Kb4 {[%emt 0:00:00]} Rc2 {[%emt 0:00:09]} 59. b3 {[%emt 0:00:00]} h4 {[%emt 0:00:28]} 60. h3 {[%emt 0:00:19]} Rc1 {[%emt 0:00:52]} 61. Kb5 {[%emt 0:00:22]} Rc3 {[%emt 0:00:46]} 62. Ka6 {[%emt 0:00:10]} Rg3 {[%emt 0:02:00]} 63. Kb7 {[%emt 0:00:06]} Rg8 {[%emt 0:00:14]} 64. Ne5+ {[%emt 0:00:22]} 1-0

[Event "1st Turkish League 2017"]
[Site "Konya"]
[Date "2017.07.23"]
[Round "9"]
[White "Ozbek, Busra"]
[Black "Demirtas, Hafize"]
[Result "1-0"]
[ECO "D02"]
[WhiteElo "1796"]
[BlackElo "1676"]
[Annotator "NA"]
[PlyCount "37"]
[EventType "team-tourn"]
[EventCountry "TUR"]
[SourceTitle "playchess.com"]
[Source "ChessBase"]
[SourceQuality "1"]
[TimeControl "5400+30"]

1. d4 Nf6 2. Nf3 d5 3. Bf4 c5 4. e3 Nc6 5. c3 Qb6 6. Na3 Qxb2 7. Nb5 Ne4 8. Bg3 Nxc3 9. Nc7+ Kd8 10. Qc1 Qb4 11. a3 Qa5 12. Qd2 cxd4 13. Nxa8 Qa4 14. Bd3 e5 15. Nxe5 Nxe5 16. Bxe5 Ne4 17. Bxe4 dxe3 18. Qxd5+ Bd7 19. O-O 1-0